[Event "10th Cesme Open-A 2024"]
[Site "Cesme"]
[Date "2024.06.25"]
[Round "4"]
[White "Kovalev, Vladislav"]
[Black "Taspinar, Yanki"]
[Result "1-0"]
[ECO "C72"]
[WhiteElo "2559"]
[BlackElo "2309"]
[Annotator "TA"]
[PlyCount "67"]
[EventDate "2024.06.23"]
[EventType "swiss"]
[EventCountry "TUR"]
[SourceTitle "playchess.com"]
[Source "ChessBase"]
[SourceQuality "1"]
[TimeControl "5400+30"]

{[%evp 10,67,43,28,43,45,40,33,46,52,50,45,39,39,39,39,50,28,56,50,77,66,75,54,58,35,42,33,30,5,0,-5,0,-31,0,0,24,6,18,22,29,0,0,0,0,0,0,0,79,44,32,20,28,11,24,0,0,0,29997,29998]} 1. e4 {[%emt 0:01:00]} e5 {[%emt 0:08:00]} 2. Nf3 {[%emt 0:01:30]} Nc6 {[%emt 0:00:00]} 3. Bb5 {[%emt 0:00:30]} a6 {[%emt 0:01:00]} 4. Ba4 {[%emt 0:00:00]} d6 {[%emt 0:00:00]} 5. O-O {[%emt 0:01:00]} Bd7 {[%emt 0:00:00]} 6. d4 {[%emt 0:01:30]} exd4 {[%emt 0:00:00]} 7. Bxc6 {[%emt 0:00:30]} Bxc6 {[%emt 0:00:00]} 8. Nxd4 {[%emt 0:00:30]} Be7 {[%emt 0:00:30] White is slightly better.} 9. Nxc6 {[%emt 0:05:30]} bxc6 {[%emt 0:00:30]} 10. f4 {[%emt 0:08:30]} Nf6 {[%emt 0:04:30]} 11. Qf3 {[%emt 0:00:30]} O-O {[%emt 0:01:30]} 12. Nc3 {[%emt 0:00:30]} Re8 {[%emt 0:21:30]} 13. Be3 {[%emt 0:04:30]} Bf8 {[%emt 0:04:30]} 14. Bf2 {[%emt 0:03:30]} Qd7 {[%emt 0:02:30]} 15. h3 {[%emt 0:02:30] Prevents Ng4} Qe6 {[%emt 0:07:30]} 16. Rfe1 {[%emt 0:03:30]} Nd7 {[%emt 0:07:30]} 17. e5 {[%emt 0:07:30]} dxe5 {[%emt 0:07:30]} 18. f5 $1 {[%emt 0:00:00]} Qh6 {[%emt 0:00:30]} 19. Rad1 {[%emt 0:03:00]} Nf6 {[%emt 0:01:30]} 20. Qxc6 {[%emt 0:04:30][%cal Oe1e5]} Qf4 {[%emt 0:06:30]} 21. Qf3 {[%emt 0:07:30]} (21. Rf1 $5) 21... Qxf3 {[%emt 0:13:24]} (21... Qb4 $5) 22. gxf3 {[%emt 0:00:30]} Rab8 {[%emt 0:00:03]} 23. b3 {[%emt 0:04:30]} Bb4 {[%emt 0:01:45]} 24. Re3 {[%emt 0:00:00]} g6 {[%emt 0:06:18][%cal Bg7g6,Bg6f5,Bf5e4][%mdl 32]} 25. Nd5 {[%emt 0:04:00]} Nxd5 {[%emt 0:00:57]} 26. Rxd5 {[%emt 0:00:30]} Rb5 {[%emt 0:03:42]} 27. Rd7 {[%emt 0:02:30]} gxf5 {[%emt 0:01:45]} 28. Rxc7 {[%emt 0:00:30]} e4 {[%emt 0:00:33]} (28... Rd5 $11) 29. fxe4 {[%emt 0:03:30]} fxe4 {[%emt 0:00:04]} 30. Rg3+ {[%emt 0:02:30]} Kf8 {[%emt 0:00:01] [#] ...Bd6 would now be deadly.} 31. Bd4 {[%emt 0:01:30] Hoping for c4.} Re6 {[%emt 0:01:00]} 32. c4 {[%emt 0:00:30]} Rf5 {[%emt 0:00:56]} 33. c5 {[%emt 0:04:30][%cal Og3g8] Intending Rg8+! and mate.} Be1 $2 {[%emt 0:00:26][%mdl 8192] [#]} (33... Rg6 $11 34. Rxg6 hxg6) 34. Rg8+ $3 {[%emt 0:00:30][%mdl 512] Weighted Error Value: White=0.10 (very precise) /Black=0.38.  Loses game:     	---       	Black=1      Mistake:       	---       	Black=1      Inaccurate:     	White=3     	Black=3      OK:         	White=12    	Black=12     Best:        	---       	Black=2      Strong:       	White=1     	---        Brilliant:      	White=1     	---} 1-0

[Event "10th Cesme Open-A 2024"]
[Site "Cesme"]
[Date "2024.06.25"]
[Round "4"]
[White "Kharitonov, Alexandr"]
[Black "Tarlabasi, Emirhan"]
[Result "1-0"]
[ECO "D32"]
[WhiteElo "2522"]
[BlackElo "2303"]
[Annotator "TA"]
[PlyCount "161"]
[EventDate "2024.06.23"]
[EventType "swiss"]
[EventCountry "TUR"]
[SourceTitle "playchess.com"]
[Source "ChessBase"]
[SourceQuality "1"]
[TimeControl "5400+30"]

{[%evp 12,161,48,51,36,39,35,13,21,5,31,29,36,23,49,22,43,43,43,41,47,45,43,46,52,27,35,8,9,8,6,5,30,31,44,45,57,56,63,58,60,56,64,56,56,56,56,56,56,56,57,45,45,45,57,52,56,7,6,8,8,6,32,27,68,69,91,72,72,68,105,96,201,202,194,193,190,178,247,248,243,248,240,249,251,250,228,208,241,221,390,387,367,305,355,159,158,118,102,120,128,129,282,282,282,281,219,80,80,80,84,80,82,80,80,80,80,80,80,80,80,80,80,80,80,80,80,80,80,80,80,78,78,78,78,78,77,77,130,102,102,102,590,540,540,540,540,531,29983,29984,29984,29985]} 1. d4 {[%emt 0:06:00]} d5 {[%emt 0:01:00]} 2. c4 {[%emt 0:00:30]} e6 {[%emt 0:00:30]} 3. Nc3 {[%emt 0:00:00]} c5 {[%emt 0:00:30]} 4. cxd5 {[%emt 0:00:00]} exd5 {[%emt 0:00:00]} 5. Nf3 {[%emt 0:01:30]} Nc6 {[%emt 0:00:00]} 6. dxc5 {[%emt 0:00:30]} d4 {[%emt 0:07:30]} 7. Na4 {[%emt 0:00:30]} Bxc5 {[%emt 0:03:30]} 8. Nxc5 {[%emt 0:00:30] Nb3 would now be deadly.} Qa5+ {[%emt 0:00:00]} 9. Bd2 {[%emt 0:00:30][%cal Bc1d2,Bd2c3,Bc3d4][%mdl 32]} Qxc5 {[%emt 0:00:00] [#] The position is equal.} 10. b4 $1 {[%emt 0:00:30]} Nxb4 {[%emt 0:09:30]} (10... Qf5 11. Rc1) 11. Rc1 {[%emt 0:00:30] Prevents Nc2+} Qd6 {[%emt 0:02:30]} 12. e3 {[%emt 0:01:30]} Nc6 {[%emt 0:08:30] [#]} 13. Bc3 $1 {[%emt 0:11:30]} Bg4 {[%emt 0:05:30]} (13... Nge7 14. Nxd4) 14. Bb5 {[%emt 0:15:30]} (14. exd4 Nge7 $11) 14... Nge7 {[%emt 0:21:30]} (14... Bxf3 15. Qxd4 (15. gxf3 O-O-O $14) 15... Qxd4 16. Bxd4 $18) 15. Qxd4 {[%emt 0:03:30]} Qxd4 {[%emt 0:01:30]} 16. Nxd4 {[%emt 0:04:30]} O-O {[%emt 0:00:30]} 17. f3 {[%emt 0:06:30]} Nxd4 {[%emt 0:09:30]} 18. Bxd4 {[%emt 0:01:30] A strong pair of Bishops.} Be6 {[%emt 0:00:00]} 19. Bc5 {[%emt 0:04:30]} Rfc8 $1 {[%emt 0:02:00]} 20. Kf2 {[%emt 0:00:30]} Rc7 {[%emt 0:05:30]} 21. Bb4 {[%emt 0:07:30]} Rxc1 {[%emt 0:02:48]} 22. Rxc1 {[%emt 0:00:00]} Nc6 {[%emt 0:00:00]} 23. Bxc6 {[%emt 0:01:00]} bxc6 $14 {[%emt 0:03:30][%mdl 4096] Endgame. KRB-KRB} 24. a3 {[%emt 0:00:30]} a5 {[%emt 0:00:33]} 25. Be1 {[%emt 0:01:30]} Ra6 {[%emt 0:04:00]} 26. Rb1 {[%emt 0:03:30] Intending Rb8+ and mate.} h6 {[%emt 0:01:25]} 27. Rb8+ {[%emt 0:02:30]} Kh7 {[%emt 0:00:30]} 28. Rb7 {[%emt 0:00:00]} a4 {[%emt 0:01:43]} 29. Rc7 {[%emt 0:00:00]} Ra8 {[%emt 0:01:50]} 30. Rxc6 {[%emt 0:02:30]} Rc8 {[%emt 0:00:13]} 31. Ra6 {[%emt 0:00:30]} Rc2+ {[%emt 0:00:57]} 32. Kg3 {[%emt 0:00:30][%cal Oh2h4]} Bb3 {[%emt 0:00:58]} 33. Bb4 {[%emt 0:00:30]} Bc4 {[%emt 0:02:06]} 34. Rxa4 {[%emt 0:05:30]} (34. Rc6 $14) 34... Bf1 $11 {[%emt 0:00:30]} 35. Kf4 {[%emt 0:00:00]} Rxg2 {[%emt 0:00:00]} 36. Ra7 {[%emt 0:00:00]} Kg6 {[%emt 0:00:51]} 37. h4 {[%emt 0:00:30][%cal Bh2h4,Bh4h5][%mdl 32]} Kf6 {[%emt 0:03:35]} 38. Be7+ {[%emt 0:04:50]} Ke6 {[%emt 0:00:25]} 39. Bd8 {[%emt 0:00:42]} f6 {[%emt 0:01:40]} 40. h5 {[%emt 0:00:24]} Rg5 {[%emt 0:02:01][%cal Of1b5]} 41. e4 {[%emt 0:00:11] White is more active.} Kd6 {[%emt 0:01:23]} (41... Bb5 $16) 42. Be7+ $1 $18 {[%emt 0:01:27]} Kc6 {[%emt 0:00:46]} 43. Bf8 $1 {[%emt 0:00:05]} Rxh5 {[%emt 0:00:17]} 44. Bxg7 {[%emt 0:00:03]} Rh3 {[%emt 0:00:25]} (44... Rb5 {was necessary.} 45. Bxf6 (45. Bxh6 Rb3 $18) 45... Rb3) 45. Rf7 $1 {[%emt 0:00:28]} (45. Bxf6 Be2 $14) 45... h5 {[%emt 0:00:32]} 46. Rxf6+ {[%emt 0:00:32]} Kd7 {[%emt 0:00:10]} 47. e5 {[%emt 0:02:02]} Bc4 {[%emt 0:00:35] Prevents e6+.} 48. Rd6+ {[%emt 0:01:49]} Kc7 {[%emt 0:00:44]} 49. Ke3 {[%emt 0:00:45] Dodges Be2} Bb5 {[%emt 0:00:31]} 50. Bf8 {[%emt 0:03:25]} Bc6 $2 {[%emt 0:00:48]} (50... h4 51. Rf6 Rh2) 51. Rf6 {[%emt 0:00:06]} h4 {[%emt 0:00:00]} 52. e6 {[%emt 0:00:19]} Rh1 {[%emt 0:00:20]} 53. e7 {[%emt 0:00:44]} (53. Rf7+ $18 {and White stays clearly on top.} Kb6 54. Bb4) 53... Bd7 {[%emt 0:00:33]} 54. Kf4 {[%emt 0:00:23]} Re1 {[%emt 0:00:37]} 55. Rh6 {[%emt 0:01:01]} h3 {[%emt 0:00:13]} 56. a4 {[%emt 0:02:39]} Ra1 $2 {[%emt 0:00:44] [#]} (56... Re2 $16 {was called for.} 57. a5 Ra2 58. Rxh3 Rxa5) 57. Rxh3 $3 {[%emt 0:00:28][%mdl 512]} Rxa4+ {[%emt 0:00:14]} 58. Kg5 {[%emt 0:01:26]} Ra5+ {[%emt 0:00:52]} 59. Kh6 {[%emt 0:01:00]} (59. Kf6 $18) 59... Be8 $16 {[%emt 0:00:40]} 60. f4 {[%emt 0:03:19]} Rf5 {[%emt 0:00:12]} 61. Rc3+ {[%emt 0:01:34]} (61. Rd3 Rxf4 62. Kg5 Rf1 $11) 61... Kd7 {[%emt 0:00:29][%cal Od7e6]} 62. Rc4 {[%emt 0:00:13]} Ke6 {[%emt 0:00:30]} 63. Kg7 $1 {[%emt 0:00:30]} Rf7+ {[%emt 0:00:30]} 64. Kg8 {[%emt 0:00:00] And now Bh6 would win.} Rf5 {[%emt 0:00:38]} 65. Rd4 {[%emt 0:00:27]} Rf6 {[%emt 0:00:38]} 66. Bg7 {[%emt 0:01:59]} Rf7 {[%emt 0:00:31] [#]} 67. Re4+ $1 {[%emt 0:01:30]} Kd7 {[%emt 0:00:11]} 68. Bf8 {[%emt 0:00:00]} Rf6 {[%emt 0:00:32]} 69. Rb4 {[%emt 0:01:52]} Rg6+ {[%emt 0:00:48]} 70. Kh7 {[%emt 0:00:04]} Rf6 {[%emt 0:00:28]} 71. Rb8 {[%emt 0:00:15] Threatening mate with Rd8+.} Rxf4 {[%emt 0:00:28]} 72. Kh6 {[%emt 0:02:22] Threatens to win with Rd8+.} Bf7 {[%emt 0:00:29]} (72... Rf6+ $2 73. Kg5 Rg6+ 74. Kf5 $18) 73. Kg7 {[%emt 0:00:33]} Bh5 {[%emt 0:00:35]} 74. Rd8+ {[%emt 0:00:13]} Kc7 {[%emt 0:00:16]} (74... Ke6 $142) 75. Kh6 {[%emt 0:00:19]} (75. e8=B $6 Rg4+ (75... Kxd8 76. Bb5 $11) 76. Kh7 Kxd8 77. Bxh5 Rh4 $11) (75. e8=Q Bxe8 76. Rxe8 Kc6 $16) 75... Bf7 {[%emt 0:00:22]} 76. Bg7 {[%emt 0:00:28]} (76. e8=N+ Kxd8 77. Kg5 (77. Nd6 Be6 $17) 77... Ra4 $15) (76. e8=R Bxe8 77. Rxe8 Kb6 $14) 76... Re4 $2 {[%emt 0:00:53][%mdl 8192] [#] Against Be5+} (76... Rg4 $16) 77. Bf6 $1 $18 {[%emt 0:00:11]} Re1 {[%emt 0:00:30]} 78. Kg7 {[%emt 0:00:52]} Bh5 {[%emt 0:00:07]} 79. Rh8 {[%emt 0:00:30]} Rg1+ {[%emt 0:00:30]} 80. Kf8 {[%emt 0:00:00]} Bg6 {[%emt 0:00:53]} 81. Rg8 {[%emt 0:00:00] Weighted Error Value: White=0.13 (very precise) /Black=0.18 (very precise) .  Loses game:     	---       	Black=1      Missed win:     	White=1     	---        Mistake:       	White=2     	Black=5      Inaccurate:     	White=2     	Black=6      OK:         	White=35    	Black=25     Best:        	White=5     	Black=14     Strong:       	White=5     	Black=1} (81. e8=B Bxe8 82. Kxe8 Re1+ 83. Kf7 Re2 $16) 1-0

[Event "10th Cesme Open-A 2024"]
[Site "Cesme"]
[Date "2024.06.25"]
[Round "4"]
[White "Gholami, Aryan"]
[Black "Kavri, Yusuf Eren"]
[Result "1-0"]
[ECO "D02"]
[WhiteElo "2481"]
[BlackElo "2059"]
[Annotator "TA"]
[PlyCount "73"]
[EventDate "2024.06.23"]
[EventType "swiss"]
[EventCountry "TUR"]
[SourceTitle "playchess.com"]
[Source "ChessBase"]
[SourceQuality "1"]
[TimeControl "5400+30"]

{[%evp 9,73,0,0,0,0,0,0,-3,0,0,0,0,-5,-20,8,16,14,0,0,0,0,0,0,0,-9,0,14,5,67,80,73,60,65,60,72,78,77,59,71,75,76,85,89,87,121,139,292,273,256,257,692,550,679,516,513,318,508,494,525,524,795,774,895,878,29989,29990]} 1. d4 {[%emt 0:01:00]} Nf6 {[%emt 0:01:00]} 2. Bf4 {[%emt 0:00:00]} d5 {[%emt 0:00:00]} 3. e3 {[%emt 0:00:00]} c5 {[%emt 0:02:00]} 4. Nf3 {[%emt 0:00:30]} Nc6 {[%emt 0:00:00]} 5. Nbd2 {[%emt 0:00:00]} Qb6 {[%emt 0:00:00][%csl LRb2,LRd4]} 6. dxc5 {[%emt 0:00:00]} Qxb2 {[%emt 0:00:30]} 7. Rb1 {[%emt 0:00:30]} Qc3 {[%emt 0:00:00][%cal Oe7e6]} 8. Bb5 {[%emt 0:00:30] The position is equal.} e6 {[%emt 0:09:00][%cal Of8e7]} 9. O-O {[%emt 0:00:00][%cal Oe3e4]} Be7 {[%emt 0:09:30][%cal Oe8g8]} 10. Ne5 {[%emt 0:19:00]} Bd7 {[%emt 0:08:30]} 11. Nd3 {[%emt 0:13:30]} Qa5 {[%emt 0:06:30] Prevents Bc7.} 12. c4 {[%emt 0:02:30]} O-O {[%emt 0:01:30]} 13. Nb3 {[%emt 0:01:30]} Qd8 {[%emt 0:00:30]} 14. Qc2 {[%emt 0:03:30]} a6 {[%emt 0:03:30]} 15. Bxc6 {[%emt 0:05:30]} Bxc6 {[%emt 0:00:30]} 16. cxd5 {[%emt 0:08:30]} Qxd5 {[%emt 0:14:30][%csl Gc6][%cal Rd5g2] [#]} 17. f3 {[%emt 0:00:30]} Rfd8 {[%emt 0:02:30]} 18. Nb4 {[%emt 0:03:30]} Qh5 {[%emt 0:01:30]} (18... Qf5 $11) 19. Nxc6 $14 {[%emt 0:01:30]} bxc6 {[%emt 0:00:30]} 20. e4 {[%emt 0:00:30] Inhibits Nd5.} Nd7 {[%emt 0:12:30]} 21. Rbc1 {[%emt 0:03:30]} Bg5 {[%emt 0:03:30]} 22. Bxg5 {[%emt 0:00:30]} Qxg5 {[%emt 0:00:30]} 23. f4 {[%emt 0:00:30][%cal Bf3f4,Bf4f5][%mdl 32]} Qg6 {[%emt 0:04:06]} 24. Na5 {[%emt 0:00:30][%cal Bb3a5,Ba5c6,Bc6e7,Be7d5][%mdl 32]} e5 {[%emt 0:03:01]} 25. Rcd1 {[%emt 0:02:30] Nb7 is the strong threat.} Nf8 {[%emt 0:04:41]} (25... exf4 $2 26. Nb7 $18) 26. f5 $36 {[%emt 0:04:30][%mdl 2048] White is in control.} Qh6 {[%emt 0:00:14]} 27. Qc3 {[%emt 0:00:00] Prevents Qe3+. White is more active.} Qh4 $2 {[%emt 0:03:24] Black cannot hold the game after this.} (27... Qf6 $16 28. h3 Rd4) 28. Nxc6 $18 {[%emt 0:02:00]} Rxd1 {[%emt 0:01:58]} 29. Rxd1 {[%emt 0:00:30]} Rc8 $2 {[%emt 0:01:57]} (29... Re8 30. Qe3 (30. Nxe5 Qxe4 31. Re1 Qxf5 $16) 30... Kh8) 30. g3 {[%emt 0:00:30]} (30. Nxe5 Qxe4 31. Rf1 Qd5 $14) 30... Qg5 {[%emt 0:01:24] Black is weak on the dark squares} 31. h4 {[%emt 0:04:30]} Qg4 {[%emt 0:00:26]} 32. Ne7+ {[%emt 0:01:30]} (32. Nxe5 $2 Qxd1+ 33. Kf2 Nd7 34. Nxd7 Qxd7 $19) 32... Kh8 {[%emt 0:00:04]} 33. Re1 {[%emt 0:03:30]} Rc7 {[%emt 0:04:07] [#]} 34. Nd5 {[%emt 0:00:30]} ({Inferior is} 34. Qxe5 Rxe7 35. Qxe7 Qxg3+ 36. Kf1 Qf3+ 37. Kg1 Qg3+ 38. Kf1 Qf3+ 39. Kg1 Qg3+ $11) 34... Rc6 {[%emt 0:00:00]} 35. Kg2 {[%emt 0:06:13]} (35. Qxe5 Rxc5 36. Qd6 Rc8 $16) 35... h5 {[%emt 0:03:36]} 36. Qb4 {[%emt 0:01:00] Intending Qb8 and mate.} (36. Qxe5 Rxc5 37. Qb8 Rc2+ 38. Kg1 Qf3 39. Qxf8+ Kh7 $11) 36... a5 {[%emt 0:00:29]} 37. Qb8 {[%emt 0:00:26] Weighted Error Value: White=0.22 (precise) /Black=0.57.  Mistake:       	---       	Black=3      Inaccurate:     	---       	Black=4      OK:         	White=17    	Black=10     Best:        	White=3     	Black=3} 1-0

[Event "10th Cesme Open-A 2024"]
[Site "Cesme"]
[Date "2024.06.25"]
[Round "4"]
[White "Annaberdiyev, Meylis"]
[Black "Aliyev, Elnur"]
[Result "1-0"]
[ECO "B01"]
[WhiteElo "2467"]
[BlackElo "2073"]
[Annotator "TA"]
[PlyCount "107"]
[EventDate "2024.06.23"]
[EventType "swiss"]
[EventCountry "TUR"]
[SourceTitle "playchess.com"]
[Source "ChessBase"]
[SourceQuality "1"]
[TimeControl "5400+30"]

{[%evp 9,107,41,48,37,51,44,40,37,66,57,102,76,196,83,99,92,88,80,166,142,227,155,163,139,158,158,254,131,112,90,191,185,187,181,188,196,193,182,261,173,170,182,268,218,230,218,211,225,217,197,260,259,420,254,245,247,277,268,293,273,262,239,392,389,413,412,508,542,570,612,555,518,1122,1103,1119,1118,1218,1087,1524,1535,1698,1806,1649,1531,2220,2218,2421,2241,29965,29973,29971,29971,29981,29981,29989,29990,29990,29991,29996,29997]} 1. e4 {[%emt 0:01:00]} d5 {[%emt 0:01:00]} 2. exd5 {[%emt 0:00:00]} Qxd5 {[%emt 0:00:00]} 3. Nc3 {[%emt 0:00:00]} Qd8 {[%emt 0:00:00]} 4. d4 {[%emt 0:00:00]} Nf6 {[%emt 0:00:00]} 5. Nf3 {[%emt 0:00:00]} g6 {[%emt 0:00:00]} 6. Bf4 {[%emt 0:02:30]} Bg7 {[%emt 0:00:30]} 7. Qd2 {[%emt 0:00:00]} O-O {[%emt 0:01:30][%cal Oc7c5]} 8. Bh6 {[%emt 0:00:00] White is slightly better.} Nc6 {[%emt 0:06:30][%cal Oc6d4]} 9. O-O-O {[%emt 0:04:30]} Bg4 {[%emt 0:13:30]} 10. Bxg7 {[%emt 0:00:30]} Bxf3 {[%emt 0:11:30]} (10... Kxg7 $16 11. d5 Nb8) 11. gxf3 {[%emt 0:01:30]} (11. Bxf6 $6 Bxd1 12. Bg5 Bg4 $16) (11. Bxf8 $18 {and the rest is easy.} Bxd1 12. Bh6) 11... Kxg7 $16 {[%emt 0:00:30] [#]} 12. d5 $1 {[%emt 0:00:00]} Nb8 {[%emt 0:11:30]} 13. h4 {[%emt 0:00:00][%cal Bh2h4,Bh4h5][%mdl 32] White is more active.} Qd6 {[%emt 0:04:30]} (13... e5 $16) 14. Ne4 {[%emt 0:02:30]} Qe5 {[%emt 0:03:30]} (14... Nxe4 $16 {keeps fighting.} 15. fxe4 Nd7) 15. Nxf6 {[%emt 0:01:30]} Qxf6 {[%emt 0:03:30]} 16. h5 {[%emt 0:00:30]} g5 {[%emt 0:02:30][%cal Bg6g5,Bg5g4][%mdl 32]} 17. Rg1 {[%emt 0:06:30]} Kh6 {[%emt 0:00:30] [#]} (17... Nd7 $16 18. Rxg5+ (18. Qxg5+ Qxg5+ 19. Rxg5+ Kh6 $18) 18... Kh8) 18. Re1 {[%emt 0:00:00]} (18. Rg4 $1 $18 {Re1 would now be deadly.} Nd7 19. f4 gxf4 20. Re1 (20. Rxf4 Qg5 $18)) 18... Nd7 {[%emt 0:07:30][%cal Oa8d8] Black is weak on the light squares} 19. Re4 {[%emt 0:01:00] Strongly threatening f4.} Rg8 {[%emt 0:07:30]} (19... e5 $16 {is a better defense.}) 20. f4 $18 {[%emt 0:02:30] And now fxg5+ would win.} g4 {[%emt 0:00:30]} 21. Qe3 {[%emt 0:04:30]} Nb6 {[%emt 0:04:30]} 22. c4 {[%emt 0:05:30]} (22. Rxe7 $2 Nxd5 23. Qe5 Qxe7 $19) 22... Rae8 {[%emt 0:04:43]} 23. Bd3 {[%emt 0:01:30]} Kg7 {[%emt 0:07:38]} (23... Nd7 $142 24. Bc2 (24. Qxa7 b6 $17) 24... Qb6) 24. Rxg4+ {[%emt 0:03:30]} Kf8 {[%emt 0:00:32]} 25. f3 {[%emt 0:00:30]} c6 {[%emt 0:01:41]} (25... h6 $142 26. Qg1 Rxg4 27. fxg4 (27. Qxg4 Na4 $14) 27... Na4) 26. Rxg8+ {[%emt 0:08:30]} Kxg8 {[%emt 0:00:30]} 27. dxc6 {[%emt 0:00:30]} bxc6 {[%emt 0:00:30]} 28. Qg1+ $40 {[%emt 0:00:30][%mdl 128] Black is in trouble.} Kf8 {[%emt 0:00:30]} 29. Qg5 {[%emt 0:00:00] Qxf6 is the strong threat.} Nd7 {[%emt 0:06:17]} (29... h6 $142 30. Qxf6 exf6) 30. h6 {[%emt 0:00:00]} Rb8 $2 {[%emt 0:01:16]} (30... e6 {was necessary.} 31. Re2 Ke7) 31. Qxf6 {[%emt 0:01:30]} Nxf6 {[%emt 0:00:30][%mdl 4096] Endgame. KRB-KRN} 32. Re5 {[%emt 0:00:30]} Rd8 {[%emt 0:00:41]} 33. Kd2 {[%emt 0:00:30]} Ng8 {[%emt 0:00:41]} 34. Ra5 {[%emt 0:00:30]} Rd7 {[%emt 0:00:06]} 35. Ra6 {[%emt 0:00:30]} Rc7 $2 {[%emt 0:00:30]} (35... Nxh6 {was worth a try.} 36. Rxc6 e6 37. Rc8+ Ke7) 36. Bxh7 {[%emt 0:00:00]} Nxh6 {[%emt 0:01:01]} 37. Be4 {[%emt 0:00:00]} e6 {[%emt 0:00:18]} 38. Rxc6 {[%emt 0:00:30]} Rxc6 {[%emt 0:00:53]} 39. Bxc6 {[%emt 0:00:00] KB-KN} Nf5 {[%emt 0:00:14]} 40. Be4 {[%emt 0:00:00] Black must now prevent Bxf5.} Ne7 {[%emt 0:00:24]} (40... Nh4 $142 41. f5 exf5) 41. b4 {[%emt 0:00:30][%cal Bb2b4,Bb4b5][%mdl 32]} f5 {[%emt 0:00:19]} 42. Bc2 {[%emt 0:00:30]} Ng6 {[%emt 0:00:53][%cal Be7g6,Bg6h4,Bh4g2][%mdl 32]} 43. Ke3 {[%emt 0:00:30]} Ke7 {[%emt 0:00:00]} 44. c5 {[%emt 0:00:30]} Nh4 {[%emt 0:00:30]} 45. b5 {[%emt 0:04:30]} Ng2+ {[%emt 0:00:42]} 46. Kd4 {[%emt 0:00:30]} Nxf4 {[%emt 0:00:14]} 47. a4 {[%emt 0:00:00][%cal Ba2a4,Ba4a5][%mdl 32]} Ng6 {[%emt 0:00:52]} 48. a5 {[%emt 0:00:00] Threatens to win with b6.} Kd7 {[%emt 0:00:28]} 49. Ba4 {[%emt 0:00:30] White mates.} Kc8 {[%emt 0:00:35]} 50. Bb3 {[%emt 0:01:30]} e5+ {[%emt 0:00:46]} 51. Kd5 {[%emt 0:00:00]} Nh4 {[%emt 0:00:43]} 52. Kd6 {[%emt 0:00:00]} Nxf3 {[%emt 0:00:27]} 53. Be6+ {[%emt 0:00:30]} Kb8 {[%emt 0:00:17]} 54. c6 {[%emt 0:00:00] Weighted Error Value: White=0.29 (precise) /Black=0.46.  Mistake:       	White=2     	Black=10     Inaccurate:     	White=3     	Black=2      OK:         	White=12    	Black=7      Best:        	White=3     	Black=2      Strong:       	White=1     	---} 1-0